[Event "Titled Tuesday Blitz May 30 Late 2023"]
[White "Tissir, Mohamed"]
[Black "Bashirli, Nail"]
[WhiteFideId "9000240"]
[BlackFideId "13406809"]
[WhiteElo "2458"]
[BlackElo "2311"]
[Result "0-1"]
[Round "07"]
[TimeControl "180+2"]
[Date "2023.05.31"]
[WhiteClock "0:00:15"]
[BlackClock "0:00:22"]

1. e4 {[%clk 0:03:00]}  c5 {[%clk 0:03:00]} 2. Nc3 {[%clk 0:03:00]}  a6 {[%clk 0:02:57]} 3. Nf3 {[%clk 0:03:00]}  b5 {[%clk 0:02:55]} 4. d4 {[%clk 0:03:01]}  cxd4 {[%clk 0:02:55]} 5. Nxd4 {[%clk 0:03:01]}  Bb7 {[%clk 0:02:56]} 6. Bd3 {[%clk 0:03:01]}  e6 {[%clk 0:02:56]} 7. O-O {[%clk 0:03:01]}  Nc6 {[%clk 0:02:56]} 8. Nb3 {[%clk 0:03:01]}  g6 {[%clk 0:02:54]} 9. Qe2 {[%clk 0:02:59]}  d6 {[%clk 0:02:52]} 10. f4 {[%clk 0:02:59]}  Nge7 {[%clk 0:02:52]} 11. f5 {[%clk 0:02:53]}  b4 {[%clk 0:02:51]} 12. Nd1 {[%clk 0:02:33]}  gxf5 {[%clk 0:02:48]} 13. exf5 {[%clk 0:02:33]}  e5 {[%clk 0:02:46]} 14. f6 {[%clk 0:02:26]}  Ng6 {[%clk 0:02:40]} 15. Be4 {[%clk 0:02:17]}  d5 {[%clk 0:02:36]} 16. Bxg6 {[%clk 0:02:03]}  hxg6 {[%clk 0:02:35]} 17. Ne3 {[%clk 0:01:57]}  e4 {[%clk 0:02:25]} 18. Rd1 {[%clk 0:01:39]}  Qd6 {[%clk 0:01:40]} 19. h3 {[%clk 0:01:27]}  Ne5 {[%clk 0:01:35]} 20. Na5 {[%clk 0:01:07]}  O-O-O {[%clk 0:01:12]} 21. Nxb7 {[%clk 0:01:06]}  Kxb7 {[%clk 0:01:13]} 22. Rxd5 {[%clk 0:01:03]}  Qxf6 {[%clk 0:01:12]} 23. Rxd8 {[%clk 0:00:36]}  Qxd8 {[%clk 0:01:13]} 24. Ng4 {[%clk 0:00:29]}  Nxg4 {[%clk 0:00:53]} 25. Qxg4 {[%clk 0:00:28]}  Bc5+ {[%clk 0:00:54]} 26. Kh1 {[%clk 0:00:25]}  f5 {[%clk 0:00:54]} 27. Qe2 {[%clk 0:00:25]}  Qd4 {[%clk 0:00:46]} 28. Bf4 {[%clk 0:00:21]}  Qf2 {[%clk 0:00:41]} 29. Qc4 {[%clk 0:00:19]}  Rxh3+ {[%clk 0:00:39]} 30. gxh3 {[%clk 0:00:18]}  Qf3+ {[%clk 0:00:40]} 31. Kh2 {[%clk 0:00:17]}  Qxf4+ {[%clk 0:00:40]} 32. Kh1 {[%clk 0:00:17]}  Qf3+ {[%clk 0:00:40]} 33. Kh2 {[%clk 0:00:17]}  Qf2+ {[%clk 0:00:21]} 34. Kh1 {[%clk 0:00:17]}  Bd6 {[%clk 0:00:22]} 35. Qd5+ {[%clk 0:00:16]}  Kc7 {[%clk 0:00:22]} 36. Qc4+ {[%clk 0:00:15]}  Kb6 {[%clk 0:00:22]} 0-1


[Site "https://www.chess.com"]

[Event "Titled Tuesday Blitz May 30 Late 2023"]
[White "Kirillov, Dmitry"]
[Black "Kushko, Dmitriy"]
[WhiteFideId "34180572"]
[BlackFideId "14162261"]
[WhiteElo "2161"]
[BlackElo "2230"]
[Result "0-1"]
[Round "07"]
[TimeControl "180+2"]
[Date "2023.05.31"]
[WhiteClock "0:00:04"]
[BlackClock "0:00:06"]

1. e4 {[%clk 0:03:00]}  g6 {[%clk 0:02:38]} 2. d4 {[%clk 0:02:59]}  Bg7 {[%clk 0:02:38]} 3. Nf3 {[%clk 0:03:00]}  d6 {[%clk 0:02:39]} 4. Nc3 {[%clk 0:02:59]}  a6 {[%clk 0:02:38]} 5. a4 {[%clk 0:02:59]}  Nf6 {[%clk 0:02:37]} 6. Be2 {[%clk 0:02:59]}  O-O {[%clk 0:02:37]} 7. O-O {[%clk 0:02:59]}  Nc6 {[%clk 0:02:38]} 8. h3 {[%clk 0:02:58]}  e5 {[%clk 0:02:37]} 9. dxe5 {[%clk 0:02:55]}  dxe5 {[%clk 0:02:37]} 10. Bg5 {[%clk 0:02:56]}  h6 {[%clk 0:02:37]} 11. Qxd8 {[%clk 0:02:53]}  Rxd8 {[%clk 0:02:31]} 12. Bxf6 {[%clk 0:02:53]}  Bxf6 {[%clk 0:02:32]} 13. Nd5 {[%clk 0:02:54]}  Kg7 {[%clk 0:02:32]} 14. Nxc7 {[%clk 0:02:54]}  Rb8 {[%clk 0:02:32]} 15. Nd5 {[%clk 0:02:55]}  Be6 {[%clk 0:02:29]} 16. c4 {[%clk 0:02:52]}  a5 {[%clk 0:02:15]} 17. Rfd1 {[%clk 0:02:47]}  Bxd5 {[%clk 0:02:09]} 18. Rxd5 {[%clk 0:02:48]}  Be7 {[%clk 0:01:37]} 19. Rad1 {[%clk 0:02:19]}  Kf6 {[%clk 0:01:20]} 20. b3 {[%clk 0:02:09]}  b6 {[%clk 0:01:15]} 21. g3 {[%clk 0:02:02]}  Bc5 {[%clk 0:01:15]} 22. Kg2 {[%clk 0:02:01]}  Ke6 {[%clk 0:00:55]} 23. Nxe5 {[%clk 0:02:01]}  Rxd5 {[%clk 0:00:48]} 24. exd5+ {[%clk 0:02:01]}  Kxe5 {[%clk 0:00:48]} 25. dxc6 {[%clk 0:02:01]}  Rc8 {[%clk 0:00:44]} 26. f4+ {[%clk 0:01:59]}  Ke6 {[%clk 0:00:43]} 27. Bf3 {[%clk 0:01:59]}  Be7 {[%clk 0:00:40]} 28. Bd5+ {[%clk 0:01:56]}  Kf6 {[%clk 0:00:40]} 29. Re1 {[%clk 0:01:54]}  Bd6 {[%clk 0:00:39]} 30. Kf3 {[%clk 0:01:51]}  h5 {[%clk 0:00:38]} 31. g4 {[%clk 0:01:51]}  hxg4+ {[%clk 0:00:38]} 32. hxg4 {[%clk 0:01:49]}  Rh8 {[%clk 0:00:39]} 33. g5+ {[%clk 0:01:40]}  Kg7 {[%clk 0:00:38]} 34. c7 {[%clk 0:01:33]}  Rc8 {[%clk 0:00:36]} 35. Kg4 {[%clk 0:01:27]}  Rxc7 {[%clk 0:00:32]} 36. f5 {[%clk 0:01:27]}  gxf5+ {[%clk 0:00:30]} 37. Kxf5 {[%clk 0:01:28]}  Bc5 {[%clk 0:00:29]} 38. Re8 {[%clk 0:01:20]}  Re7 {[%clk 0:00:27]} 39. Rc8 {[%clk 0:01:03]}  Bd4 {[%clk 0:00:19]} 40. Rc6 {[%clk 0:00:47]}  Re5+ {[%clk 0:00:18]} 41. Kg4 {[%clk 0:00:45]}  Re7 {[%clk 0:00:17]} 42. Kh5 {[%clk 0:00:33]}  Be3 {[%clk 0:00:16]} 43. Rf6 {[%clk 0:00:25]}  Bd4 {[%clk 0:00:15]} 44. Rf5 {[%clk 0:00:24]}  Bc5 {[%clk 0:00:13]} 45. Kg4 {[%clk 0:00:21]}  Bd6 {[%clk 0:00:13]} 46. Rf6 {[%clk 0:00:20]}  Bc5 {[%clk 0:00:13]} 47. Kf4 {[%clk 0:00:16]}  Be3+ {[%clk 0:00:13]} 48. Kf5 {[%clk 0:00:16]}  Bd4 {[%clk 0:00:12]} 49. Rc6 {[%clk 0:00:16]}  Re5+ {[%clk 0:00:11]} 50. Kf4 {[%clk 0:00:17]}  Re7 {[%clk 0:00:11]} 51. Be4 {[%clk 0:00:13]}  Bc5 {[%clk 0:00:10]} 52. g6 {[%clk 0:00:08]}  f6 {[%clk 0:00:09]} 53. Bd5 {[%clk 0:00:06]}  Be3+ {[%clk 0:00:08]} 54. Kg4 {[%clk 0:00:07]}  Bc5 {[%clk 0:00:07]} 55. Bf7 {[%clk 0:00:06]}  Re4+ {[%clk 0:00:06]} 56. Kf5 {[%clk 0:00:06]}  Re3 {[%clk 0:00:05]} 57. Kf4 {[%clk 0:00:06]}  Rxb3 {[%clk 0:00:05]} 58. Rc7 {[%clk 0:00:07]}  Bd6+ {[%clk 0:00:05]} 59. Kf5 {[%clk 0:00:06]}  Bxc7 {[%clk 0:00:06]} 60. Bd5 {[%clk 0:00:07]}  Rg3 {[%clk 0:00:05]} 61. Bf7 {[%clk 0:00:06]}  Rg5+ {[%clk 0:00:05]} 62. Ke6 {[%clk 0:00:05]}  Rc5 {[%clk 0:00:06]} 63. Kd7 {[%clk 0:00:04]}  f5 {[%clk 0:00:06]} 0-1


[Site "https://www.chess.com"]

[Event "Titled Tuesday Blitz May 30 Late 2023"]
[White "Estrada Nieto, Julian"]
[Black "laziestwin"]
[WhiteFideId "5101018"]
[WhiteElo "2161"]
[BlackElo "2646"]
[Result "1-0"]
[Round "07"]
[TimeControl "180+2"]
[Date "2023.05.31"]
[WhiteClock "0:00:13"]
[BlackClock "0:00:01"]

1. e4 {[%clk 0:03:00]}  c6 {[%clk 0:02:59]} 2. d4 {[%clk 0:03:00]}  d5 {[%clk 0:03:00]} 3. Nc3 {[%clk 0:03:01]}  dxe4 {[%clk 0:03:00]} 4. Nxe4 {[%clk 0:03:01]}  Nf6 {[%clk 0:03:00]} 5. Nxf6+ {[%clk 0:03:02]}  exf6 {[%clk 0:03:01]} 6. c3 {[%clk 0:03:02]}  Bd6 {[%clk 0:03:01]} 7. Bd3 {[%clk 0:03:03]}  O-O {[%clk 0:03:02]} 8. Ne2 {[%clk 0:03:04]}  Re8 {[%clk 0:03:02]} 9. Qc2 {[%clk 0:03:04]}  h5 {[%clk 0:03:01]} 10. h3 {[%clk 0:03:05]}  Nd7 {[%clk 0:02:59]} 11. Bd2 {[%clk 0:03:05]}  Nf8 {[%clk 0:02:59]} 12. O-O {[%clk 0:03:05]}  h4 {[%clk 0:02:56]} 13. Rae1 {[%clk 0:03:05]}  Be6 {[%clk 0:02:55]} 14. Bf4 {[%clk 0:02:59]}  Qd7 {[%clk 0:02:49]} 15. b3 {[%clk 0:02:47]}  Rad8 {[%clk 0:02:34]} 16. Bxd6 {[%clk 0:02:35]}  Qxd6 {[%clk 0:02:34]} 17. Rd1 {[%clk 0:02:30]}  Bc8 {[%clk 0:02:24]} 18. Kh1 {[%clk 0:02:24]}  Qd5 {[%clk 0:02:15]} 19. Ng1 {[%clk 0:02:11]}  Ne6 {[%clk 0:02:12]} 20. Be4 {[%clk 0:01:59]}  Qh5 {[%clk 0:01:59]} 21. Bf3 {[%clk 0:01:41]}  Qg5 {[%clk 0:01:53]} 22. Ne2 {[%clk 0:01:33]}  a5 {[%clk 0:01:40]} 23. Rfe1 {[%clk 0:01:29]}  g6 {[%clk 0:01:32]} 24. Qc1 {[%clk 0:01:21]}  Qf5 {[%clk 0:01:16]} 25. Bg4 {[%clk 0:01:07]}  Qg5 {[%clk 0:01:00]} 26. f4 {[%clk 0:00:59]}  Qh6 {[%clk 0:00:51]} 27. f5 {[%clk 0:00:55]}  Ng5 {[%clk 0:00:24]} 28. Qf4 {[%clk 0:00:51]}  Re4 {[%clk 0:00:18]} 29. Qf2 {[%clk 0:00:36]}  Rde8 {[%clk 0:00:16]} 30. Ng1 {[%clk 0:00:33]}  gxf5 {[%clk 0:00:13]} 31. Bf3 {[%clk 0:00:27]}  Rxe1 {[%clk 0:00:11]} 32. Rxe1 {[%clk 0:00:27]}  Ne4 {[%clk 0:00:10]} 33. Bxe4 {[%clk 0:00:15]}  fxe4 {[%clk 0:00:11]} 34. Re3 {[%clk 0:00:14]}  f5 {[%clk 0:00:10]} 35. Ne2 {[%clk 0:00:14]}  Kf8 {[%clk 0:00:05]} 36. Nf4 {[%clk 0:00:15]}  Be6 {[%clk 0:00:03]} 37. g3 {[%clk 0:00:14]}  hxg3 {[%clk 0:00:03]} 38. Rxg3 {[%clk 0:00:15]}  Ke7 {[%clk 0:00:03]} 39. Qe3 {[%clk 0:00:15]}  Rh8 {[%clk 0:00:03]} 40. Kh2 {[%clk 0:00:14]}  Qh4 {[%clk 0:00:03]} 41. c4 {[%clk 0:00:13]}  Bd7 {[%clk 0:00:02]} 42. d5 {[%clk 0:00:14]}  cxd5 {[%clk 0:00:01]} 43. Qc5+ {[%clk 0:00:14]}  Kd8 {[%clk 0:00:01]} 44. Nxd5 {[%clk 0:00:13]} 1-0


[Site "https://www.chess.com"]

[Event "Titled Tuesday Blitz May 30 Late 2023"]
[White "Bernabeu Lopez, Carlos Javier"]
[Black "Le Goff, Ronan"]
[WhiteFideId "2235366"]
[BlackFideId "612073"]
[WhiteElo "2344"]
[BlackElo "2275"]
[Result "1/2-1/2"]
[Round "07"]
[TimeControl "180+2"]
[Date "2023.05.31"]
[WhiteClock "0:01:05"]
[BlackClock "0:00:07"]

1. c4 {[%clk 0:03:00]}  Nf6 {[%clk 0:02:48]} 2. Nc3 {[%clk 0:03:01]}  e6 {[%clk 0:02:46]} 3. e4 {[%clk 0:03:01]}  e5 {[%clk 0:02:45]} 4. Nf3 {[%clk 0:03:01]}  Nc6 {[%clk 0:02:45]} 5. d4 {[%clk 0:03:01]}  exd4 {[%clk 0:02:43]} 6. Nxd4 {[%clk 0:03:02]}  Bb4 {[%clk 0:02:43]} 7. Nxc6 {[%clk 0:03:02]}  bxc6 {[%clk 0:02:43]} 8. e5 {[%clk 0:03:01]}  Ne4 {[%clk 0:02:32]} 9. Qf3 {[%clk 0:03:01]}  d5 {[%clk 0:02:20]} 10. exd6 {[%clk 0:02:58]}  Nxc3 {[%clk 0:02:09]} 11. bxc3 {[%clk 0:02:58]}  Bxd6 {[%clk 0:02:07]} 12. Bd3 {[%clk 0:02:49]}  O-O {[%clk 0:02:04]} 13. O-O {[%clk 0:02:49]}  Rb8 {[%clk 0:02:02]} 14. h3 {[%clk 0:02:40]}  c5 {[%clk 0:01:49]} 15. Be3 {[%clk 0:02:27]}  Bb7 {[%clk 0:01:47]} 16. Be4 {[%clk 0:02:26]}  Bxe4 {[%clk 0:01:44]} 17. Qxe4 {[%clk 0:02:27]}  Qf6 {[%clk 0:01:44]} 18. Rab1 {[%clk 0:02:17]}  Qxc3 {[%clk 0:01:36]} 19. g3 {[%clk 0:02:10]}  Rbe8 {[%clk 0:01:24]} 20. Rb3 {[%clk 0:01:56]}  Qxb3 {[%clk 0:01:18]} 21. Qxe8 {[%clk 0:01:56]}  Qxc4 {[%clk 0:01:12]} 22. Qc6 {[%clk 0:01:53]}  Qxa2 {[%clk 0:01:06]} 23. Rc1 {[%clk 0:01:54]}  h6 {[%clk 0:00:56]} 24. Bxc5 {[%clk 0:01:52]}  Rd8 {[%clk 0:00:45]} 25. Bxd6 {[%clk 0:01:49]}  cxd6 {[%clk 0:00:38]} 26. Qc7 {[%clk 0:01:49]}  Re8 {[%clk 0:00:30]} 27. Qd7 {[%clk 0:01:42]}  Qe6 {[%clk 0:00:29]} 28. Qxa7 {[%clk 0:01:42]}  Qxh3 {[%clk 0:00:27]} 29. Rd1 {[%clk 0:01:39]}  Qh5 {[%clk 0:00:18]} 30. Qd4 {[%clk 0:01:31]}  Re6 {[%clk 0:00:13]} 31. Kg2 {[%clk 0:01:28]}  Qe5 {[%clk 0:00:12]} 32. Qa7 {[%clk 0:01:23]}  Qe4+ {[%clk 0:00:12]} 33. Kg1 {[%clk 0:01:24]}  g6 {[%clk 0:00:10]} 34. Qb8+ {[%clk 0:01:20]}  Kg7 {[%clk 0:00:11]} 35. Qb2+ {[%clk 0:01:21]}  Qe5 {[%clk 0:00:11]} 36. Qd2 {[%clk 0:01:22]}  h5 {[%clk 0:00:11]} 37. Qd3 {[%clk 0:01:20]}  Rf6 {[%clk 0:00:11]} 38. Kg2 {[%clk 0:01:17]}  Qe6 {[%clk 0:00:09]} 39. Qd4 {[%clk 0:01:14]}  Qe5 {[%clk 0:00:09]} 40. Qd3 {[%clk 0:01:13]}  Qc5 {[%clk 0:00:09]} 41. Rd2 {[%clk 0:01:12]}  Qf5 {[%clk 0:00:08]} 42. Qxf5 {[%clk 0:01:11]}  gxf5 {[%clk 0:00:07]} 43. Kf3 {[%clk 0:01:11]}  Kg6 {[%clk 0:00:07]} 44. Kf4 {[%clk 0:01:12]}  Re6 {[%clk 0:00:08]} 45. f3 {[%clk 0:01:11]}  Kf6 {[%clk 0:00:08]} 46. Rd5 {[%clk 0:01:12]}  Kg6 {[%clk 0:00:07]} 47. Ra5 {[%clk 0:01:09]}  Re5 {[%clk 0:00:05]} 48. Ra8 {[%clk 0:01:05]}  Rb5 {[%clk 0:00:04]} 49. Rg8+ {[%clk 0:01:06]}  Kf6 {[%clk 0:00:04]} 50. Rh8 {[%clk 0:01:03]}  Rb4+ {[%clk 0:00:04]} 51. Ke3 {[%clk 0:01:04]}  f4+ {[%clk 0:00:04]} 52. gxf4 {[%clk 0:01:04]}  Rb5 {[%clk 0:00:05]} 53. Rh6+ {[%clk 0:01:03]}  Ke7 {[%clk 0:00:04]} 54. Ke4 {[%clk 0:01:03]}  Rb4+ {[%clk 0:00:05]} 55. Ke3 {[%clk 0:01:03]}  Rb3+ {[%clk 0:00:05]} 56. Ke4 {[%clk 0:01:03]}  Rb4+ {[%clk 0:00:05]} 57. Ke3 {[%clk 0:01:04]}  Rb3+ {[%clk 0:00:06]} 58. Ke4 {[%clk 0:01:05]}  Rb4+ {[%clk 0:00:07]} 1/2-1/2


[Site "https://www.chess.com"]

[Event "Titled Tuesday Blitz May 30 Late 2023"]
[White "Kovalevsky, Stanislav"]
[Black "Hossain, Enamul"]
[WhiteFideId "13508598"]
[BlackFideId "10200649"]
[WhiteElo "2174"]
[BlackElo "2433"]
[Result "0-1"]
[Round "07"]
[TimeControl "180+2"]
[Date "2023.05.31"]
[WhiteClock "0:00:02"]
[BlackClock "0:00:23"]

1. c4 {[%clk 0:03:00]}  c5 {[%clk 0:02:56]} 2. Nc3 {[%clk 0:03:01]}  Nc6 {[%clk 0:02:55]} 3. g3 {[%clk 0:03:01]}  g6 {[%clk 0:02:54]} 4. Bg2 {[%clk 0:03:01]}  Bg7 {[%clk 0:02:54]} 5. a3 {[%clk 0:03:01]}  a5 {[%clk 0:02:45]} 6. Nf3 {[%clk 0:02:49]}  d6 {[%clk 0:02:42]} 7. e3 {[%clk 0:02:47]}  e5 {[%clk 0:02:37]} 8. O-O {[%clk 0:02:36]}  Be6 {[%clk 0:02:36]} 9. d3 {[%clk 0:02:13]}  h6 {[%clk 0:02:31]} 10. Re1 {[%clk 0:02:10]}  Nge7 {[%clk 0:02:29]} 11. Bd2 {[%clk 0:01:56]}  O-O {[%clk 0:02:29]} 12. Nb5 {[%clk 0:01:47]}  d5 {[%clk 0:02:24]} 13. cxd5 {[%clk 0:01:43]}  Nxd5 {[%clk 0:02:16]} 14. d4 {[%clk 0:01:41]}  e4 {[%clk 0:01:59]} 15. Ne5 {[%clk 0:01:38]}  Nxe5 {[%clk 0:01:39]} 16. dxe5 {[%clk 0:01:39]}  Bxe5 {[%clk 0:01:38]} 17. Bxe4 {[%clk 0:01:39]}  Bxb2 {[%clk 0:01:37]} 18. Rb1 {[%clk 0:01:40]}  Bg7 {[%clk 0:01:36]} 19. Qc2 {[%clk 0:01:12]}  Qe7 {[%clk 0:01:19]} 20. Red1 {[%clk 0:01:03]}  Rfd8 {[%clk 0:01:17]} 21. Be1 {[%clk 0:00:55]}  b6 {[%clk 0:01:11]} 22. Nc3 {[%clk 0:00:51]}  Nxc3 {[%clk 0:01:09]} 23. Bxc3 {[%clk 0:00:49]}  Rxd1+ {[%clk 0:01:05]} 24. Rxd1 {[%clk 0:00:46]}  Rd8 {[%clk 0:01:04]} 25. Bxg7 {[%clk 0:00:42]}  Rxd1+ {[%clk 0:01:02]} 26. Qxd1 {[%clk 0:00:39]}  Kxg7 {[%clk 0:01:02]} 27. Bf3 {[%clk 0:00:34]}  Qf6 {[%clk 0:01:00]} 28. Kg2 {[%clk 0:00:25]}  Qb2 {[%clk 0:00:57]} 29. Qd6 {[%clk 0:00:23]}  c4 {[%clk 0:00:52]} 30. h4 {[%clk 0:00:20]}  h5 {[%clk 0:00:51]} 31. Be4 {[%clk 0:00:18]}  b5 {[%clk 0:00:49]} 32. Qc7 {[%clk 0:00:16]}  b4 {[%clk 0:00:43]} 33. axb4 {[%clk 0:00:12]}  axb4 {[%clk 0:00:43]} 34. g4 {[%clk 0:00:11]}  hxg4 {[%clk 0:00:38]} 35. h5 {[%clk 0:00:11]}  Qf6 {[%clk 0:00:37]} 36. Qb8 {[%clk 0:00:08]}  gxh5 {[%clk 0:00:34]} 37. Qxb4 {[%clk 0:00:08]}  h4 {[%clk 0:00:33]} 38. Qc5 {[%clk 0:00:07]}  Kh6 {[%clk 0:00:29]} 39. Qf8+ {[%clk 0:00:06]}  Qg7 {[%clk 0:00:28]} 40. Qd8 {[%clk 0:00:06]}  Kh5 {[%clk 0:00:25]} 41. Qd1 {[%clk 0:00:03]}  h3+ {[%clk 0:00:24]} 42. Kg1 {[%clk 0:00:02]}  Qe5 {[%clk 0:00:23]} 0-1


[Site "https://www.chess.com"]

[Event "Titled Tuesday Blitz May 30 Late 2023"]
[White "Martic, Ivan"]
[Black "zsizsi99"]
[WhiteFideId "929301"]
[WhiteElo "2360"]
[BlackElo "2395"]
[Result "1-0"]
[Round "07"]
[TimeControl "180+2"]
[Date "2023.05.31"]
[WhiteClock "0:00:17"]
[BlackClock "0:00:03"]

1. Nf3 {[%clk 0:03:00]}  Nf6 {[%clk 0:02:59]} 2. c4 {[%clk 0:03:00]}  e6 {[%clk 0:02:56]} 3. Nc3 {[%clk 0:03:00]}  Be7 {[%clk 0:02:51]} 4. e4 {[%clk 0:02:59]}  d5 {[%clk 0:02:42]} 5. e5 {[%clk 0:02:59]}  Ne4 {[%clk 0:02:40]} 6. d4 {[%clk 0:02:58]}  c5 {[%clk 0:02:31]} 7. cxd5 {[%clk 0:02:55]}  Nxc3 {[%clk 0:02:21]} 8. bxc3 {[%clk 0:02:56]}  Qxd5 {[%clk 0:02:21]} 9. Bd3 {[%clk 0:02:43]}  cxd4 {[%clk 0:02:08]} 10. cxd4 {[%clk 0:02:44]}  Nc6 {[%clk 0:02:08]} 11. O-O {[%clk 0:02:32]}  O-O {[%clk 0:02:08]} 12. Re1 {[%clk 0:02:23]}  g6 {[%clk 0:02:05]} 13. Be4 {[%clk 0:02:20]}  Qd7 {[%clk 0:02:02]} 14. Be3 {[%clk 0:02:11]}  Nb4 {[%clk 0:02:00]} 15. h4 {[%clk 0:02:01]}  Nd5 {[%clk 0:02:00]} 16. Bh6 {[%clk 0:02:01]}  Rd8 {[%clk 0:01:59]} 17. h5 {[%clk 0:01:44]}  Bf8 {[%clk 0:01:59]} 18. Bg5 {[%clk 0:01:44]}  Re8 {[%clk 0:01:53]} 19. hxg6 {[%clk 0:01:43]}  fxg6 {[%clk 0:01:50]} 20. Rc1 {[%clk 0:01:40]}  b6 {[%clk 0:01:42]} 21. Nh2 {[%clk 0:01:31]}  Bb7 {[%clk 0:01:38]} 22. Ng4 {[%clk 0:01:31]}  Bg7 {[%clk 0:01:38]} 23. f3 {[%clk 0:01:24]}  Rac8 {[%clk 0:01:37]} 24. Qd2 {[%clk 0:01:22]}  Qf7 {[%clk 0:00:58]} 25. Bxd5 {[%clk 0:01:15]}  Bxd5 {[%clk 0:00:56]} 26. Nf6+ {[%clk 0:01:15]}  Bxf6 {[%clk 0:00:56]} 27. Bxf6 {[%clk 0:01:16]}  Qf8 {[%clk 0:00:50]} 28. a3 {[%clk 0:01:04]}  Rxc1 {[%clk 0:00:40]} 29. Rxc1 {[%clk 0:01:05]}  Rc8 {[%clk 0:00:40]} 30. Rc3 {[%clk 0:01:02]}  Rxc3 {[%clk 0:00:29]} 31. Qxc3 {[%clk 0:01:02]}  Qb8 {[%clk 0:00:26]} 32. Qb4 {[%clk 0:00:59]}  Qb7 {[%clk 0:00:23]} 33. Qd6 {[%clk 0:00:55]}  Qf7 {[%clk 0:00:08]} 34. Qb8+ {[%clk 0:00:54]}  Qf8 {[%clk 0:00:08]} 35. Qxa7 {[%clk 0:00:55]}  b5 {[%clk 0:00:08]} 36. Kf2 {[%clk 0:00:49]}  Bc4 {[%clk 0:00:08]} 37. Qb7 {[%clk 0:00:43]}  Qf7 {[%clk 0:00:08]} 38. Qb6 {[%clk 0:00:38]}  Qf8 {[%clk 0:00:09]} 39. Qa7 {[%clk 0:00:35]}  Qf7 {[%clk 0:00:08]} 40. Qa5 {[%clk 0:00:33]}  Qf8 {[%clk 0:00:06]} 41. g4 {[%clk 0:00:32]}  Bd3 {[%clk 0:00:05]} 42. Kg3 {[%clk 0:00:28]}  Bc4 {[%clk 0:00:06]} 43. Qa6 {[%clk 0:00:23]}  Qe8 {[%clk 0:00:05]} 44. a4 {[%clk 0:00:21]}  Bd3 {[%clk 0:00:04]} 45. Qb7 {[%clk 0:00:18]}  Qf7 {[%clk 0:00:03]} 46. Qc8+ {[%clk 0:00:18]}  Qf8 {[%clk 0:00:03]} 47. Qxe6+ {[%clk 0:00:19]}  Qf7 {[%clk 0:00:03]} 48. Qc8+ {[%clk 0:00:17]}  Qf8 {[%clk 0:00:04]} 49. Qxf8+ {[%clk 0:00:16]}  Kxf8 {[%clk 0:00:04]} 50. axb5 {[%clk 0:00:16]}  Bxb5 {[%clk 0:00:04]} 51. d5 {[%clk 0:00:17]}  Bc4 {[%clk 0:00:04]} 52. d6 {[%clk 0:00:17]}  Be6 {[%clk 0:00:03]} 53. Kf4 {[%clk 0:00:17]}  Ke8 {[%clk 0:00:03]} 54. Kg5 {[%clk 0:00:17]}  Kd7 {[%clk 0:00:02]} 55. f4 {[%clk 0:00:17]}  Bd5 {[%clk 0:00:02]} 56. f5 {[%clk 0:00:17]}  gxf5 {[%clk 0:00:03]} 57. gxf5 {[%clk 0:00:18]}  Be4 {[%clk 0:00:03]} 58. Be7 {[%clk 0:00:16]}  h6+ {[%clk 0:00:04]} 59. Kf6 {[%clk 0:00:16]}  h5 {[%clk 0:00:04]} 60. e6+ {[%clk 0:00:17]}  Kc6 {[%clk 0:00:03]} 61. d7 {[%clk 0:00:17]} 1-0


[Site "https://www.chess.com"]

[Event "Titled Tuesday Blitz May 30 Late 2023"]
[White "Kokoszczynski, Jan"]
[Black "Bjelobrk, Igor"]
[WhiteFideId "1174460"]
[BlackFideId "4300726"]
[WhiteElo "2139"]
[BlackElo "2319"]
[Result "0-1"]
[Round "07"]
[TimeControl "180+2"]
[Date "2023.05.31"]
[WhiteClock "0:00:02"]
[BlackClock "0:00:14"]

1. c4 {[%clk 0:02:55]}  c5 {[%clk 0:02:58]} 2. Nf3 {[%clk 0:02:54]}  Nc6 {[%clk 0:02:58]} 3. g3 {[%clk 0:02:54]}  g6 {[%clk 0:02:57]} 4. Bg2 {[%clk 0:02:54]}  Bg7 {[%clk 0:02:55]} 5. Nc3 {[%clk 0:02:53]}  d6 {[%clk 0:02:54]} 6. d3 {[%clk 0:02:50]}  Bd7 {[%clk 0:02:41]} 7. Qd2 {[%clk 0:02:48]}  Qc8 {[%clk 0:02:39]} 8. h4 {[%clk 0:02:46]}  h5 {[%clk 0:02:39]} 9. b3 {[%clk 0:02:45]}  Nh6 {[%clk 0:02:35]} 10. Bb2 {[%clk 0:02:44]}  Ng4 {[%clk 0:02:34]} 11. Nd5 {[%clk 0:02:40]}  Nce5 {[%clk 0:02:01]} 12. Nxe5 {[%clk 0:02:33]}  dxe5 {[%clk 0:02:00]} 13. O-O {[%clk 0:02:26]}  Bc6 {[%clk 0:01:58]} 14. Rae1 {[%clk 0:01:48]}  e6 {[%clk 0:01:54]} 15. Ne3 {[%clk 0:01:37]}  Bh6 {[%clk 0:01:52]} 16. f4 {[%clk 0:01:16]}  Nxe3 {[%clk 0:01:31]} 17. Qxe3 {[%clk 0:01:12]}  exf4 {[%clk 0:01:23]} 18. gxf4 {[%clk 0:00:17]}  Bxg2 {[%clk 0:01:19]} 19. Kxg2 {[%clk 0:00:18]}  Qc6+ {[%clk 0:01:14]} 20. Qf3 {[%clk 0:00:16]}  Qxf3+ {[%clk 0:01:13]} 21. Kxf3 {[%clk 0:00:17]}  O-O {[%clk 0:01:13]} 22. Rg1 {[%clk 0:00:16]}  Bg7 {[%clk 0:01:11]} 23. Be5 {[%clk 0:00:15]}  a5 {[%clk 0:01:05]} 24. Bxg7 {[%clk 0:00:14]}  Kxg7 {[%clk 0:01:05]} 25. Rg5 {[%clk 0:00:14]}  b6 {[%clk 0:01:04]} 26. a4 {[%clk 0:00:14]}  Rad8 {[%clk 0:00:55]} 27. Reg1 {[%clk 0:00:14]}  Kf6 {[%clk 0:00:55]} 28. Ke3 {[%clk 0:00:13]}  Rd4 {[%clk 0:00:54]} 29. Re5 {[%clk 0:00:13]}  Rfd8 {[%clk 0:00:53]} 30. Rgg5 {[%clk 0:00:12]}  Kg7 {[%clk 0:00:52]} 31. Re4 {[%clk 0:00:11]}  Rxe4+ {[%clk 0:00:49]} 32. Kxe4 {[%clk 0:00:12]}  Rd4+ {[%clk 0:00:48]} 33. Kf3 {[%clk 0:00:11]}  f6 {[%clk 0:00:49]} 34. Rg1 {[%clk 0:00:12]}  e5 {[%clk 0:00:47]} 35. fxe5 {[%clk 0:00:10]}  fxe5 {[%clk 0:00:47]} 36. Rh1 {[%clk 0:00:10]}  Rf4+ {[%clk 0:00:44]} 37. Kg3 {[%clk 0:00:10]}  Kf6 {[%clk 0:00:44]} 38. e3 {[%clk 0:00:10]}  Rg4+ {[%clk 0:00:43]} 39. Kh3 {[%clk 0:00:09]}  e4 {[%clk 0:00:41]} 40. d4 {[%clk 0:00:08]}  cxd4 {[%clk 0:00:38]} 41. exd4 {[%clk 0:00:09]}  e3 {[%clk 0:00:37]} 42. Re1 {[%clk 0:00:08]}  Re4 {[%clk 0:00:29]} 43. Kg3 {[%clk 0:00:09]}  Kf5 {[%clk 0:00:24]} 44. d5 {[%clk 0:00:08]}  Ke5 {[%clk 0:00:20]} 45. Re2 {[%clk 0:00:07]}  Kd4 {[%clk 0:00:20]} 46. Kf3 {[%clk 0:00:05]}  Re5 {[%clk 0:00:18]} 47. d6 {[%clk 0:00:05]}  Rf5+ {[%clk 0:00:18]} 48. Kg3 {[%clk 0:00:05]}  Rf6 {[%clk 0:00:18]} 49. d7 {[%clk 0:00:04]}  Rd6 {[%clk 0:00:18]} 50. Re1 {[%clk 0:00:05]}  Ke4 {[%clk 0:00:14]} 51. Kg2 {[%clk 0:00:03]}  Rxd7 {[%clk 0:00:14]} 52. Kf1 {[%clk 0:00:03]}  Rd2 {[%clk 0:00:14]} 53. Rb1 {[%clk 0:00:02]}  Kf3 {[%clk 0:00:14]} 54. Ke1 {[%clk 0:00:02]}  Rh2 {[%clk 0:00:14]} 0-1


[Site "https://www.chess.com"]